[Event "RUS-ch Men Blitz 2019"]
[Site "Sochi"]
[Date "2019.10.17"]
[Round "12.12"]
[White "Popov, Valerij"]
[Black "Goltsev, Dmitry"]
[Result "1-0"]
[ECO "E91"]
[WhiteElo "2535"]
[BlackElo "2309"]
[Annotator "ChessBase"]
[PlyCount "169"]
[EventDate "2019.10.17"]
[EventType "swiss"]
[EventCountry "RUS"]
[SourceTitle "playchess.com"]
[Source "ChessBase"]
[SourceQuality "1"]
[TimeControl "180+2"]

1. c4 {[%emt 0:00:00]} Nf6 {[%emt 0:00:00]} 2. Nf3 {[%emt 0:00:02]} g6 {[%emt 0:00:00]} 3. Nc3 {[%emt 0:00:01]} Bg7 {[%emt 0:00:01]} 4. e4 {[%emt 0:00:00]} d6 {[%emt 0:00:01]} 5. d4 {[%emt 0:00:01]} O-O {[%emt 0:00:02]} 6. Be2 {[%emt 0:00:01]} Nbd7 {[%emt 0:00:02]} 7. Be3 {[%emt 0:00:01]} e5 {[%emt 0:00:01]} 8. d5 {[%emt 0:00:01]} a5 {[%emt 0:00:07]} 9. Nd2 {[%emt 0:00:01]} b6 {[%emt 0:00:02]} 10. a3 {[%emt 0:00:02]} Qe7 {[%emt 0:00:03]} 11. b4 {[%emt 0:00:08]} Bb7 {[%emt 0:00:02]} 12. O-O {[%emt 0:00:05]} axb4 {[%emt 0:00:01]} 13. axb4 {[%emt 0:00:01]} Rxa1 {[%emt 0:00:02]} 14. Qxa1 {[%emt 0:00:02]} Ra8 {[%emt 0:00:01]} 15. Qb2 {[%emt 0:00:01]} Qd8 {[%emt 0:00:01]} 16. c5 {[%emt 0:00:17]} bxc5 {[%emt 0:00:15]} 17. bxc5 {[%emt 0:00:01]} Rb8 {[%emt 0:00:10]} 18. Qa3 {[%emt 0:00:11]} Nxc5 {[%emt 0:00:06]} 19. Bxc5 {[%emt 0:00:11]} dxc5 {[%emt 0:00:05]} 20. Rb1 {[%emt 0:00:04]} Nd7 {[%emt 0:00:07]} 21. Bb5 {[%emt 0:00:18]} Ra8 {[%emt 0:00:14]} 22. Qb3 {[%emt 0:00:09]} Ba6 {[%emt 0:00:16]} 23. Bc6 {[%emt 0:00:36]} Rb8 {[%emt 0:00:02]} 24. Qa2 {[%emt 0:00:00]} Rxb1+ {[%emt 0:00:08]} 25. Ndxb1 {[%emt 0:00:02]} Bd3 {[%emt 0:00:05]} 26. Bb5 {[%emt 0:00:19]} Bxb1 {[%emt 0:00:32]} 27. Qxb1 {[%emt 0:00:02]} Nb6 {[%emt 0:00:06]} 28. Bc6 {[%emt 0:00:01]} Bf8 {[%emt 0:00:05]} 29. g3 {[%emt 0:00:05]} Qg5 {[%emt 0:00:04]} 30. Nb5 {[%emt 0:00:04]} Qd8 {[%emt 0:00:14]} 31. Qa1 {[%emt 0:00:15]} Bd6 {[%emt 0:00:03]} 32. Kg2 {[%emt 0:00:01]} h5 {[%emt 0:00:16]} 33. h4 {[%emt 0:00:03]} c4 {[%emt 0:00:09]} 34. Qb2 {[%emt 0:00:12]} Qe7 {[%emt 0:00:06]} 35. Qa1 {[%emt 0:00:06]} Kg7 {[%emt 0:00:07]} 36. Qa7 {[%emt 0:00:09]} Qd8 {[%emt 0:00:14]} 37. Qa1 {[%emt 0:00:07]} Qe7 {[%emt 0:00:05]} 38. Qa7 {[%emt 0:00:01]} Qd8 {[%emt 0:00:02]} 39. Kf1 {[%emt 0:00:02]} Qe7 {[%emt 0:00:11]} 40. Ke2 {[%emt 0:00:01]} Qd8 {[%emt 0:00:04]} 41. Qa1 {[%emt 0:00:09]} Qe7 {[%emt 0:00:02]} 42. Qb2 {[%emt 0:00:02]} g5 {[%emt 0:00:03]} 43. hxg5 {[%emt 0:00:02]} Na4 {[%emt 0:00:02]} 44. Qc2 {[%emt 0:00:05]} Nc5 {[%emt 0:00:01]} 45. Nxd6 {[%emt 0:00:12]} cxd6 46. f4 {[%emt 0:00:02]} exf4 {[%emt 0:00:02]} 47. gxf4 {[%emt 0:00:01]} Nxe4 {[%emt 0:00:03]} 48. Kf3 {[%emt 0:00:01]} Nc5 {[%emt 0:00:03]} 49. Qxc4 {[%emt 0:00:01]} Qe1 {[%emt 0:00:02]} 50. Qd4+ {[%emt 0:00:08]} Kg8 {[%emt 0:00:02]} 51. Bb5 {[%emt 0:00:00]} h4 {[%emt 0:00:01]} 52. Qf2 {[%emt 0:00:06]} Qe4+ {[%emt 0:00:02]} 53. Kg4 {[%emt 0:00:00]} Qh1 {[%emt 0:00:04]} 54. Qxh4 {[%emt 0:00:04]} Qxd5 {[%emt 0:00:01]} 55. Qe1 {[%emt 0:00:05]} Ne6 {[%emt 0:00:01]} 56. Bd7 {[%emt 0:00:05]} Qg2+ {[%emt 0:00:02]} 57. Kf5 {[%emt 0:00:02]} Nd4+ 58. Kf6 Ne2 {[%emt 0:00:08]} 59. Be8 {[%emt 0:00:04]} Qf3 {[%emt 0:00:03]} 60. Bxf7+ {[%emt 0:00:02]} Kf8 {[%emt 0:00:01]} 61. f5 {[%emt 0:00:01]} Qc3+ {[%emt 0:00:03]} 62. Qxc3 Nxc3 {[%emt 0:00:01]} 63. Bc4 {[%emt 0:00:07]} Ne4+ {[%emt 0:00:03]} 64. Kg6 {[%emt 0:00:01]} Nd2 {[%emt 0:00:03]} 65. Bd5 {[%emt 0:00:02]} Nf1 {[%emt 0:00:01]} 66. Kf6 {[%emt 0:00:00]} Ne3 {[%emt 0:00:01]} 67. Be6 {[%emt 0:00:01]} Ng4+ {[%emt 0:00:01]} 68. Kg6 {[%emt 0:00:00]} Ne5+ {[%emt 0:00:02]} 69. Kh5 {[%emt 0:00:01]} Ke7 70. Bd5 Nd7 {[%emt 0:00:03]} 71. Kg4 {[%emt 0:00:04]} Ne5+ {[%emt 0:00:01]} 72. Kf4 {[%emt 0:00:01]} Nd7 {[%emt 0:00:01]} 73. Ke4 {[%emt 0:00:01]} Nc5+ {[%emt 0:00:01]} 74. Ke3 {[%emt 0:00:00]} Nd7 {[%emt 0:00:02]} 75. Kd4 {[%emt 0:00:01]} Ne5 {[%emt 0:00:04]} 76. f6+ {[%emt 0:00:01]} Kf8 {[%emt 0:00:03]} 77. Ke4 {[%emt 0:00:01]} Ng6 {[%emt 0:00:03]} 78. Be6 {[%emt 0:00:04]} Ke8 {[%emt 0:00:04]} 79. Bg4 {[%emt 0:00:03]} Ne5 {[%emt 0:00:01]} 80. Bh5+ {[%emt 0:00:01]} Kd7 {[%emt 0:00:01]} 81. Kf5 {[%emt 0:00:00]} Nc6 {[%emt 0:00:05]} 82. g6 {[%emt 0:00:02]} Nd4+ {[%emt 0:00:01]} 83. Kg5 {[%emt 0:00:00]} Ke6 {[%emt 0:00:01]} 84. g7 {[%emt 0:00:01]} Nf3+ {[%emt 0:00:01]} 85. Bxf3 {[%emt 0:00:01]} 1-0

[Event "RUS-ch Men Blitz 2019"]
[Site "Sochi"]
[Date "2019.10.17"]
[Round "12.13"]
[White "Savitskiy, Sergey"]
[Black "Papin, Vasily"]
[Result "1-0"]
[ECO "B43"]
[WhiteElo "2407"]
[BlackElo "2481"]
[Annotator "ChessBase"]
[PlyCount "68"]
[EventDate "2019.10.17"]
[EventType "swiss"]
[EventCountry "RUS"]
[SourceTitle "playchess.com"]
[Source "ChessBase"]
[SourceQuality "1"]
[TimeControl "180+2"]

1. e4 {[%emt 0:00:00]} c5 {[%emt 0:00:00]} 2. Nf3 {[%emt 0:00:00]} e6 {[%emt 0:00:00]} 3. d4 {[%emt 0:00:01]} cxd4 {[%emt 0:00:00]} 4. Nxd4 a6 5. Nc3 {[%emt 0:00:01]} Qc7 {[%emt 0:00:01]} 6. g3 {[%emt 0:00:01]} d6 {[%emt 0:00:09]} 7. Bg2 {[%emt 0:00:02]} Bd7 {[%emt 0:00:00]} 8. O-O {[%emt 0:00:02]} Nc6 {[%emt 0:00:03]} 9. Re1 {[%emt 0:00:01]} Be7 {[%emt 0:00:00]} 10. g4 {[%emt 0:00:49]} h6 {[%emt 0:00:09]} 11. Nf5 {[%emt 0:00:07]} exf5 {[%emt 0:00:22]} 12. Nd5 {[%emt 0:00:01]} Qd8 {[%emt 0:00:03]} 13. exf5 {[%emt 0:00:01]} Kf8 {[%emt 0:00:26]} 14. Be3 {[%emt 0:00:42]} Be8 {[%emt 0:00:41]} 15. Bb6 {[%emt 0:00:16]} Qd7 {[%emt 0:00:01]} 16. Nxe7 {[%emt 0:00:13]} Ncxe7 {[%emt 0:00:50]} 17. a4 {[%emt 0:00:05]} Nf6 {[%emt 0:00:02]} 18. h3 {[%emt 0:00:04]} Rc8 {[%emt 0:00:06]} 19. c3 {[%emt 0:00:04]} Kg8 {[%emt 0:00:06]} 20. Qd2 {[%emt 0:00:09]} Kh7 {[%emt 0:00:08]} 21. Rad1 {[%emt 0:00:06]} d5 {[%emt 0:00:01]} 22. a5 {[%emt 0:00:09]} Nc6 {[%emt 0:00:02]} 23. Qf4 {[%emt 0:00:06]} d4 {[%emt 0:00:12]} 24. c4 {[%emt 0:00:18]} d3 {[%emt 0:00:12]} 25. h4 {[%emt 0:00:03]} Rf8 {[%emt 0:00:11]} 26. g5 {[%emt 0:00:02]} Ng8 {[%emt 0:00:01]} 27. Be4 {[%emt 0:00:09]} Kh8 {[%emt 0:00:03]} 28. Rxd3 {[%emt 0:00:02]} Qe7 {[%emt 0:00:03]} 29. f6 {[%emt 0:00:09]} Qe5 {[%emt 0:00:03]} 30. Qxe5 {[%emt 0:00:04]} Nxe5 {[%emt 0:00:01]} 31. fxg7+ {[%emt 0:00:02]} Kxg7 {[%emt 0:00:01]} 32. Bd4 {[%emt 0:00:01]} f6 {[%emt 0:00:04]} 33. gxf6+ {[%emt 0:00:01]} Kxf6 {[%emt 0:00:01]} 34. Rf3+ {[%emt 0:00:03]} Ke7 {[%emt 0:00:06]} 1-0

[Event "RUS-ch Men Blitz 2019"]
[Site "Sochi"]
[Date "2019.10.17"]
[Round "12.14"]
[White "Potapov, Pavel"]
[Black "Nesterov, Arseniy"]
[Result "1/2-1/2"]
[ECO "C77"]
[WhiteElo "2489"]
[BlackElo "2484"]
[Annotator "ChessBase"]
[PlyCount "52"]
[EventDate "2019.10.17"]
[EventType "swiss"]
[EventCountry "RUS"]
[SourceTitle "playchess.com"]
[Source "ChessBase"]
[SourceQuality "1"]
[TimeControl "180+2"]

1. e4 {[%emt 0:00:00]} e5 {[%emt 0:00:00]} 2. Nf3 {[%emt 0:00:00]} Nc6 {[%emt 0:00:01]} 3. Bb5 {[%emt 0:00:01]} a6 {[%emt 0:00:03]} 4. Ba4 {[%emt 0:00:02]} Nf6 {[%emt 0:00:01]} 5. Bxc6 {[%emt 0:00:02]} dxc6 {[%emt 0:00:02]} 6. d3 {[%emt 0:00:01]} Bd6 {[%emt 0:00:15]} 7. Nbd2 {[%emt 0:00:04]} Be6 {[%emt 0:00:18]} 8. b3 {[%emt 0:00:01]} Nd7 {[%emt 0:00:08]} 9. Bb2 {[%emt 0:00:02]} O-O {[%emt 0:00:04]} 10. O-O {[%emt 0:00:03]} Qe7 {[%emt 0:00:10]} 11. Nc4 {[%emt 0:00:04]} f6 {[%emt 0:00:02]} 12. Ne3 {[%emt 0:00:08]} Rad8 {[%emt 0:00:10]} 13. Nf5 {[%emt 0:00:08]} Qf7 {[%emt 0:00:04]} 14. Qe2 {[%emt 0:00:05]} Rfe8 {[%emt 0:00:07]} 15. Rad1 {[%emt 0:00:02]} c5 {[%emt 0:00:07]} 16. h3 {[%emt 0:00:03]} Bf8 {[%emt 0:00:05]} 17. Nh2 {[%emt 0:00:10]} Nb8 {[%emt 0:00:24]} 18. Qf3 {[%emt 0:00:22]} Nc6 {[%emt 0:00:10]} 19. Qg3 {[%emt 0:00:07]} Qg6 {[%emt 0:00:03]} 20. Qxg6 {[%emt 0:00:12]} hxg6 {[%emt 0:00:01]} 21. Ne3 {[%emt 0:00:01]} Nd4 {[%emt 0:00:06]} 22. Rfe1 {[%emt 0:00:08]} Kf7 {[%emt 0:00:05]} 23. Nhf1 {[%emt 0:00:02]} g5 {[%emt 0:00:09]} 24. f3 {[%emt 0:00:08]} g6 {[%emt 0:00:02]} 25. Kf2 {[%emt 0:00:06]} a5 {[%emt 0:00:01]} 26. a4 {[%emt 0:00:09]} b6 {[%emt 0:00:07]} 1/2-1/2

[Event "RUS-ch Men Blitz 2019"]
[Site "Sochi"]
[Date "2019.10.17"]
[Round "12.15"]
[White "Kokarev, Dmitry"]
[Black "Remizov, Yaroslav"]
[Result "1-0"]
[ECO "C18"]
[WhiteElo "2593"]
[BlackElo "2394"]
[Annotator "ChessBase"]
[PlyCount "91"]
[EventDate "2019.10.17"]
[EventType "swiss"]
[EventCountry "RUS"]
[SourceTitle "playchess.com"]
[Source "ChessBase"]
[SourceQuality "1"]
[TimeControl "180+2"]

1. e4 {[%emt 0:00:00]} e6 {[%emt 0:00:00]} 2. d4 {[%emt 0:00:01]} d5 {[%emt 0:00:00]} 3. Nc3 {[%emt 0:00:01]} Bb4 {[%emt 0:00:01]} 4. e5 {[%emt 0:00:01]} c5 {[%emt 0:00:01]} 5. a3 {[%emt 0:00:02]} Bxc3+ {[%emt 0:00:02]} 6. bxc3 {[%emt 0:00:01]} Ne7 {[%emt 0:00:01]} 7. Qg4 {[%emt 0:00:01]} Qc7 {[%emt 0:00:03]} 8. Qxg7 {[%emt 0:00:02]} Rg8 {[%emt 0:00:01]} 9. Qxh7 {[%emt 0:00:01]} cxd4 {[%emt 0:00:01]} 10. Ne2 {[%emt 0:00:01]} Nbc6 {[%emt 0:00:01]} 11. f4 {[%emt 0:00:04]} dxc3 {[%emt 0:00:02]} 12. Qd3 {[%emt 0:00:03]} d4 {[%emt 0:00:04]} 13. Nxd4 {[%emt 0:00:07]} Nxd4 {[%emt 0:00:04]} 14. Qxd4 {[%emt 0:00:01]} Nf5 {[%emt 0:00:17]} 15. Bb5+ {[%emt 0:00:03]} Bd7 {[%emt 0:00:21]} 16. Bxd7+ {[%emt 0:00:03]} Qxd7 {[%emt 0:00:02]} 17. Qxd7+ {[%emt 0:00:01]} Kxd7 {[%emt 0:00:01]} 18. Kf2 {[%emt 0:00:02]} Rad8 {[%emt 0:00:44]} 19. Rb1 {[%emt 0:00:01]} Nd4 {[%emt 0:00:36]} 20. Rxb7+ {[%emt 0:00:05]} Kc6 {[%emt 0:00:00]} 21. Rb4 {[%emt 0:00:03]} Nxc2 {[%emt 0:00:53]} 22. Rc4+ {[%emt 0:00:02]} Kb5 {[%emt 0:00:02]} 23. Rxc3 {[%emt 0:00:02]} Rc8 {[%emt 0:00:00]} 24. Rxc8 {[%emt 0:00:07]} Rxc8 {[%emt 0:00:01]} 25. h4 {[%emt 0:00:06]} Nd4 {[%emt 0:00:03]} 26. Bd2 {[%emt 0:00:39]} Rc2 {[%emt 0:00:08]} 27. Ke3 {[%emt 0:00:02]} Nf5+ {[%emt 0:00:09]} 28. Kd3 {[%emt 0:00:02]} Ra2 {[%emt 0:00:01]} 29. g4 {[%emt 0:00:26]} Rxa3+ {[%emt 0:00:02]} 30. Bc3 {[%emt 0:00:02]} Ne7 {[%emt 0:00:09]} 31. Rb1+ {[%emt 0:00:22]} Kc5 {[%emt 0:00:04]} 32. Ra1 {[%emt 0:00:15]} Rxa1 {[%emt 0:00:04]} 33. Bxa1 {[%emt 0:00:01]} a5 {[%emt 0:00:05]} 34. h5 {[%emt 0:00:03]} Kc6 {[%emt 0:00:02]} 35. Ke4 {[%emt 0:00:03]} Kd7 {[%emt 0:00:00]} 36. f5 {[%emt 0:00:03]} exf5+ {[%emt 0:00:02]} 37. gxf5 {[%emt 0:00:01]} Ke8 {[%emt 0:00:01]} 38. Bc3 {[%emt 0:00:11]} Kf8 {[%emt 0:00:02]} 39. Bxa5 {[%emt 0:00:04]} Nc6 {[%emt 0:00:01]} 40. Bd2 {[%emt 0:00:05]} Kg7 {[%emt 0:00:02]} 41. Bg5 {[%emt 0:00:03]} Na5 {[%emt 0:00:05]} 42. Kd5 {[%emt 0:00:02]} Nb3 {[%emt 0:00:02]} 43. e6 {[%emt 0:00:03]} fxe6+ {[%emt 0:00:01]} 44. fxe6 {[%emt 0:00:01]} Na5 {[%emt 0:00:02]} 45. e7 {[%emt 0:00:04]} Kf7 {[%emt 0:00:00]} 46. h6 {[%emt 0:00:01]} 1-0

[Event "RUS-ch Men Blitz 2019"]
[Site "Sochi"]
[Date "2019.10.17"]
[Round "12.16"]
[White "Faizrakhmanov, Ramil"]
[Black "Rozum, Ivan"]
[Result "1-0"]
[ECO "A53"]
[WhiteElo "2434"]
[BlackElo "2599"]
[Annotator "ChessBase"]
[PlyCount "109"]
[EventDate "2019.10.17"]
[EventType "swiss"]
[EventCountry "RUS"]
[SourceTitle "playchess.com"]
[Source "ChessBase"]
[SourceQuality "1"]
[TimeControl "180+2"]

1. d4 {[%emt 0:00:00]} Nf6 {[%emt 0:00:00]} 2. c4 {[%emt 0:00:00]} d6 {[%emt 0:00:01]} 3. Nf3 {[%emt 0:00:02]} g6 {[%emt 0:00:03]} 4. e3 {[%emt 0:00:01]} Bg7 {[%emt 0:00:01]} 5. Be2 {[%emt 0:00:02]} O-O {[%emt 0:00:02]} 6. O-O {[%emt 0:00:01]} b6 {[%emt 0:00:02]} 7. Nc3 {[%emt 0:00:05]} Bb7 {[%emt 0:00:01]} 8. b3 {[%emt 0:00:01]} Nbd7 {[%emt 0:00:02]} 9. Qc2 {[%emt 0:00:02]} e5 {[%emt 0:00:18]} 10. Bb2 {[%emt 0:00:02]} Re8 {[%emt 0:00:04]} 11. Rfd1 {[%emt 0:00:01]} exd4 {[%emt 0:00:04]} 12. Nxd4 {[%emt 0:00:21]} Nc5 {[%emt 0:00:03]} 13. Bf3 {[%emt 0:00:04]} Bxf3 {[%emt 0:00:03]} 14. Nxf3 {[%emt 0:00:01]} a5 {[%emt 0:00:03]} 15. h3 {[%emt 0:00:02]} Qc8 {[%emt 0:00:02]} 16. Nd5 {[%emt 0:00:10]} Nxd5 {[%emt 0:00:07]} 17. cxd5 {[%emt 0:00:04]} Bxb2 {[%emt 0:00:02]} 18. Qxb2 {[%emt 0:00:01]} b5 {[%emt 0:00:10]} 19. Nd4 {[%emt 0:00:20]} b4 {[%emt 0:00:01]} 20. a3 {[%emt 0:00:02]} Qb7 {[%emt 0:00:02]} 21. Nc6 {[%emt 0:00:08]} Ne4 {[%emt 0:00:15]} 22. axb4 {[%emt 0:00:10]} axb4 {[%emt 0:00:01]} 23. Rxa8 {[%emt 0:00:02]} Rxa8 {[%emt 0:00:02]} 24. Rd4 {[%emt 0:00:06]} f5 {[%emt 0:00:26]} 25. Rxb4 {[%emt 0:00:03]} Qa6 {[%emt 0:00:05]} 26. Ra4 {[%emt 0:00:21]} Qb7 {[%emt 0:00:01]} 27. Rxa8+ {[%emt 0:00:04]} Qxa8 {[%emt 0:00:00]} 28. f3 {[%emt 0:00:03]} Ng5 {[%emt 0:00:16]} 29. Qf6 {[%emt 0:00:07]} Nf7 {[%emt 0:00:01]} 30. Kh2 {[%emt 0:00:24]} Qa3 {[%emt 0:00:11]} 31. Nd8 {[%emt 0:00:11]} Nxd8 {[%emt 0:00:43]} 32. Qxd8+ {[%emt 0:00:01]} Kf7 {[%emt 0:00:06]} 33. Qxc7+ Kf6 34. Qxh7 {[%emt 0:00:15]} Qxb3 {[%emt 0:00:03]} 35. Qh8+ {[%emt 0:00:07]} Kf7 {[%emt 0:00:04]} 36. Qd4 {[%emt 0:00:13]} g5 {[%emt 0:00:05]} 37. e4 {[%emt 0:00:08]} Qc2 {[%emt 0:00:28]} 38. e5 {[%emt 0:00:02]} dxe5 {[%emt 0:00:05]} 39. Qxe5 {[%emt 0:00:01]} Kg6 {[%emt 0:00:05]} 40. Qe6+ {[%emt 0:00:05]} Kh5 {[%emt 0:00:05]} 41. d6 {[%emt 0:00:12]} Qd2 {[%emt 0:00:01]} 42. Qf7+ {[%emt 0:00:07]} Kh6 {[%emt 0:00:01]} 43. Qf6+ {[%emt 0:00:02]} Kh5 {[%emt 0:00:00]} 44. Qe5 {[%emt 0:00:06]} Kg6 {[%emt 0:00:03]} 45. Qe6+ {[%emt 0:00:05]} Kh5 {[%emt 0:00:01]} 46. Qe8+ {[%emt 0:00:02]} Kh6 {[%emt 0:00:01]} 47. Qf8+ {[%emt 0:00:02]} Kg6 {[%emt 0:00:02]} 48. Qe8+ Kh6 49. Qe6+ {[%emt 0:00:05]} Kh5 {[%emt 0:00:01]} 50. Qe5 {[%emt 0:00:03]} Kg6 {[%emt 0:00:02]} 51. Qe6+ {[%emt 0:00:01]} Kh5 {[%emt 0:00:01]} 52. Qxf5 {[%emt 0:00:01]} Qxd6+ {[%emt 0:00:01]} 53. f4 {[%emt 0:00:01]} Qxf4+ {[%emt 0:00:02]} 54. Qxf4 {[%emt 0:00:01]} gxf4 {[%emt 0:00:01]} 55. Kg1 {[%emt 0:00:02]} 1-0

[Event "RUS-ch Men Blitz 2019"]
[Site "Sochi"]
[Date "2019.10.17"]
[Round "12.17"]
[White "Papenin, Nikolai"]
[Black "Belozerov, Andrei"]
[Result "1-0"]
[ECO "D18"]
[WhiteElo "2295"]
[BlackElo "2515"]
[Annotator "ChessBase"]
[PlyCount "92"]
[EventDate "2019.10.17"]
[EventType "swiss"]
[EventCountry "RUS"]
[SourceTitle "playchess.com"]
[Source "ChessBase"]
[SourceQuality "1"]
[TimeControl "180+2"]

1. d4 {[%emt 0:00:00]} d5 {[%emt 0:00:00]} 2. c4 c6 3. Nc3 {[%emt 0:00:00]} Nf6 {[%emt 0:00:00]} 4. Nf3 {[%emt 0:00:01]} dxc4 {[%emt 0:00:01]} 5. a4 {[%emt 0:00:09]} Bf5 {[%emt 0:00:01]} 6. e3 {[%emt 0:00:08]} e6 {[%emt 0:00:01]} 7. Bxc4 {[%emt 0:00:01]} Bb4 {[%emt 0:00:01]} 8. O-O {[%emt 0:00:02]} Nbd7 {[%emt 0:00:00]} 9. Qb3 {[%emt 0:00:04]} a5 {[%emt 0:00:04]} 10. Na2 {[%emt 0:00:15]} Bd6 {[%emt 0:00:13]} 11. Qxb7 {[%emt 0:00:01]} Rb8 {[%emt 0:00:06]} 12. Qa6 {[%emt 0:00:21]} O-O {[%emt 0:00:04]} 13. Bd3 {[%emt 0:00:15]} Qc7 {[%emt 0:00:26]} 14. Bxf5 {[%emt 0:00:06]} exf5 {[%emt 0:00:01]} 15. Bd2 {[%emt 0:00:16]} Ra8 {[%emt 0:00:21]} 16. Qc4 {[%emt 0:00:11]} Ne4 {[%emt 0:00:01]} 17. h3 {[%emt 0:00:18]} Rfc8 {[%emt 0:00:07]} 18. Nc3 {[%emt 0:00:09]} Rab8 {[%emt 0:00:11]} 19. Nxe4 {[%emt 0:00:10]} fxe4 {[%emt 0:00:01]} 20. Ng5 {[%emt 0:00:01]} Nf6 {[%emt 0:00:01]} 21. Bxa5 {[%emt 0:00:18]} Qxa5 {[%emt 0:00:30]} 22. Nxf7 {[%emt 0:00:03]} Qd5 {[%emt 0:00:25]} 23. Nxd6 {[%emt 0:00:04]} Qxc4 {[%emt 0:00:06]} 24. Nxc4 {[%emt 0:00:01]} Rb4 {[%emt 0:00:00]} 25. Rfc1 {[%emt 0:00:03]} Nd5 {[%emt 0:00:02]} 26. a5 {[%emt 0:00:02]} Ra8 {[%emt 0:00:01]} 27. a6 {[%emt 0:00:03]} Kf8 {[%emt 0:00:05]} 28. Ne5 {[%emt 0:00:09]} Rxb2 {[%emt 0:00:03]} 29. Rxc6 {[%emt 0:00:07]} Nb4 {[%emt 0:00:05]} 30. Rb6 {[%emt 0:00:06]} Nd3 {[%emt 0:00:01]} 31. Rxb2 {[%emt 0:00:04]} Nxb2 {[%emt 0:00:01]} 32. Nc6 {[%emt 0:00:09]} Ke8 {[%emt 0:00:03]} 33. a7 {[%emt 0:00:04]} Kd7 {[%emt 0:00:01]} 34. d5 {[%emt 0:00:00]} Kd6 {[%emt 0:00:21]} 35. Rb1 {[%emt 0:00:15]} Kxd5 {[%emt 0:00:01]} 36. Nb4+ {[%emt 0:00:01]} Kc4 {[%emt 0:00:01]} 37. Rxb2 {[%emt 0:00:01]} Rxa7 {[%emt 0:00:00]} 38. Nc6 {[%emt 0:00:05]} Ra1+ {[%emt 0:00:04]} 39. Kh2 Kc3 40. Rb7 {[%emt 0:00:04]} Kd2 {[%emt 0:00:02]} 41. Rxg7 {[%emt 0:00:06]} Ke2 {[%emt 0:00:01]} 42. Kg3 {[%emt 0:00:02]} Rg1 {[%emt 0:00:01]} 43. Nd4+ {[%emt 0:00:03]} Kf1 {[%emt 0:00:01]} 44. Kf4 {[%emt 0:00:02]} Kxf2 {[%emt 0:00:02]} 45. Kxe4 {[%emt 0:00:02]} Rxg2 {[%emt 0:00:01]} 46. Rxg2+ {[%emt 0:00:01]} Kxg2 {[%emt 0:00:01]} 1-0

[Event "RUS-ch Men Blitz 2019"]
[Site "Sochi"]
[Date "2019.10.17"]
[Round "12.18"]
[White "Lugovskoy, Maxim"]
[Black "Korchmar, Vasiliy"]
[Result "1-0"]
[ECO "A45"]
[WhiteElo "2436"]
[BlackElo "2432"]
[Annotator "NA"]
[PlyCount "43"]
[EventDate "2019.10.17"]
[EventType "swiss"]
[EventCountry "RUS"]
[SourceTitle "playchess.com"]
[Source "ChessBase"]
[SourceQuality "1"]
[TimeControl "180+2"]

1. d4 {[%emt 0:00:00]} Nf6 {[%emt 0:00:00]} 2. Nc3 {[%emt 0:00:00]} d5 {[%emt 0:00:02]} 3. Bf4 {[%emt 0:00:00]} a6 {[%emt 0:00:03]} 4. Nf3 {[%emt 0:00:02]} Nbd7 {[%emt 0:00:00]} 5. e3 {[%emt 0:00:02]} e6 {[%emt 0:00:04]} 6. Bd3 {[%emt 0:00:01]} c5 {[%emt 0:00:08]} 7. O-O {[%emt 0:00:02]} b5 {[%emt 0:00:02]} 8. a3 {[%emt 0:00:03]} Bb7 {[%emt 0:00:01]} 9. dxc5 {[%emt 0:00:07]} Nxc5 {[%emt 0:00:01]} 10. Qe2 {[%emt 0:00:01]} Be7 {[%emt 0:00:05]} 11. Rad1 {[%emt 0:00:01]} Qb6 {[%emt 0:00:09]} 12. Bg5 {[%emt 0:00:05]} O-O {[%emt 0:00:03]} 13. Ne5 {[%emt 0:00:07]} Rad8 {[%emt 0:00:10]} 14. Ng4 {[%emt 0:00:16]} Nxd3 {[%emt 0:00:12]} 15. cxd3 {[%emt 0:00:03]} Rfe8 {[%emt 0:00:28]} 16. Bxf6 {[%emt 0:00:08]} gxf6 {[%emt 0:00:26]} 17. Nh6+ {[%emt 0:00:01]} Kg7 {[%emt 0:00:01]} 18. Qh5 {[%emt 0:00:01]} Rf8 {[%emt 0:00:10]} 19. d4 {[%emt 0:00:03]} f5 {[%emt 0:00:23]} 20. f4 {[%emt 0:00:01]} Qc7 {[%emt 0:00:16]} 21. Rf3 {[%emt 0:00:00]} Bd6 {[%emt 0:00:22]} 22. Qg5+ {[%emt 0:00:07]} 1-0

[Event "RUS-ch Men Blitz 2019"]
[Site "Sochi"]
[Date "2019.10.17"]
[Round "12.19"]
[White "Kardashevskiy, Evgeny"]
[Black "Samusenko, Maksim"]
[Result "1/2-1/2"]
[ECO "A46"]
[WhiteElo "2428"]
[BlackElo "2445"]
[Annotator "NA"]
[PlyCount "104"]
[EventDate "2019.10.17"]
[EventType "swiss"]
[EventCountry "RUS"]
[SourceTitle "playchess.com"]
[Source "ChessBase"]
[SourceQuality "1"]
[TimeControl "180+2"]

1. d4 {[%emt 0:00:00]} Nf6 {[%emt 0:00:00]} 2. Nf3 {[%emt 0:00:00]} d6 {[%emt 0:00:00]} 3. c4 {[%emt 0:00:01]} g6 {[%emt 0:00:00]} 4. g3 {[%emt 0:00:03]} Bg7 {[%emt 0:00:00]} 5. Bg2 {[%emt 0:00:01]} O-O {[%emt 0:00:01]} 6. O-O {[%emt 0:00:01]} c6 {[%emt 0:00:01]} 7. Nc3 {[%emt 0:00:02]} Nbd7 {[%emt 0:00:01]} 8. b3 {[%emt 0:00:10]} Re8 {[%emt 0:00:06]} 9. e4 {[%emt 0:00:05]} e5 {[%emt 0:00:03]} 10. h3 {[%emt 0:00:05]} exd4 {[%emt 0:00:07]} 11. Nxd4 {[%emt 0:00:02]} Nc5 {[%emt 0:00:01]} 12. Re1 {[%emt 0:00:10]} Qb6 {[%emt 0:00:02]} 13. Be3 {[%emt 0:00:24]} a5 {[%emt 0:00:21]} 14. Qc2 {[%emt 0:00:03]} Bd7 {[%emt 0:00:13]} 15. Rad1 {[%emt 0:00:02]} Rad8 {[%emt 0:00:02]} 16. Rd2 {[%emt 0:00:18]} Bc8 {[%emt 0:00:06]} 17. Red1 {[%emt 0:00:03]} Qc7 {[%emt 0:00:28]} 18. a3 {[%emt 0:00:22]} Qe7 {[%emt 0:00:14]} 19. f3 {[%emt 0:00:01]} d5 {[%emt 0:00:18]} 20. cxd5 {[%emt 0:00:04]} cxd5 {[%emt 0:00:02]} 21. Bg5 {[%emt 0:00:32]} dxe4 {[%emt 0:00:04]} 22. fxe4 {[%emt 0:00:08]} Qe5 {[%emt 0:00:39]} 23. Bf4 {[%emt 0:00:02]} Qh5 {[%emt 0:00:01]} 24. e5 {[%emt 0:00:12]} Rxe5 {[%emt 0:00:41]} 25. Bf3 {[%emt 0:00:13]} Qxh3 {[%emt 0:00:07]} 26. Bxe5 {[%emt 0:00:03]} Ng4 {[%emt 0:00:06]} 27. Bxg4 {[%emt 0:00:04]} Bxg4 {[%emt 0:00:01]} 28. Bxg7 {[%emt 0:00:02]} Bxd1 {[%emt 0:00:04]} 29. Qxd1 {[%emt 0:00:04]} Qxg3+ {[%emt 0:00:01]} 30. Kh1 {[%emt 0:00:02]} Kxg7 {[%emt 0:00:03]} 31. Nf5+ {[%emt 0:00:14]} gxf5 {[%emt 0:00:00]} 32. Rxd8 {[%emt 0:00:04]} Qxc3 {[%emt 0:00:02]} 33. Qd4+ {[%emt 0:00:18]} Qxd4 {[%emt 0:00:01]} 34. Rxd4 {[%emt 0:00:01]} Nxb3 {[%emt 0:00:01]} 35. Rd5 {[%emt 0:00:01]} b6 {[%emt 0:00:09]} 36. Rb5 {[%emt 0:00:02]} Nd4 {[%emt 0:00:01]} 37. Rxb6 {[%emt 0:00:01]} f6 {[%emt 0:00:01]} 38. Rd6 {[%emt 0:00:04]} Nb5 {[%emt 0:00:01]} 39. Rd5 {[%emt 0:00:09]} Nxa3 {[%emt 0:00:01]} 40. Rxa5 {[%emt 0:00:01]} Nc4 {[%emt 0:00:01]} 41. Rxf5 {[%emt 0:00:02]} Ne5 {[%emt 0:00:00]} 42. Rf1 {[%emt 0:00:01]} Kg6 {[%emt 0:00:02]} 43. Kg2 {[%emt 0:00:01]} Kg5 {[%emt 0:00:01]} 44. Ra1 {[%emt 0:00:01]} h5 {[%emt 0:00:01]} 45. Ra4 {[%emt 0:00:02]} f5 {[%emt 0:00:04]} 46. Kg3 {[%emt 0:00:02]} Ng6 {[%emt 0:00:01]} 47. Rb4 {[%emt 0:00:02]} h4+ {[%emt 0:00:01]} 48. Kf3 {[%emt 0:00:03]} Ne5+ {[%emt 0:00:02]} 49. Kg2 {[%emt 0:00:02]} f4 {[%emt 0:00:04]} 50. Rb5 {[%emt 0:00:01]} Kf5 {[%emt 0:00:01]} 51. Kh3 {[%emt 0:00:01]} Ke4 {[%emt 0:00:01]} 52. Kxh4 {[%emt 0:00:03]} Nf3+ {[%emt 0:00:03]} 1/2-1/2